{"text_format":"1","workbook":"xlsx","n_sheets":10,"sheets":["1","2","3","4","5","Risikoprofil","Risikoprofil_sten","Risikoprofil (2)","Anlagestrategie","Sheet1"],"not_rendered":{"charts":30,"images":0,"macros":1,"external_links":0,"defined_names":3,"comments":0,"pivot_tables":0},"unopened":[],"bounds":{"document_bytes":16777216,"sheet_cells":100000,"rows_first":2000,"rows_last":500,"rows_between":2000,"halvings":0,"cell_chars":16384,"cell_head_chars":4096},"cells_cut":0,"cells_raw":0,"read":"whole","date_system":"1900"}

{"sheet":"1","index":0,"n_rows":28,"n_cols":6,"rows_kept":28,"cut":false,"hidden":false,"merged":[[0,0,0,5],[2,0,2,5]]}
["Vom Risikoprofil abgeleitetete mögliche\nAnlagestrategie"]
[]
["Aus dem errechneten Risikoprofil lassen sich diverse Anlagestrategien ableiten, welche sowohl die Risikofähigkeit, als auch die Risikobereitschaft berücksichtigen. Nachstehende Anlagestrategien sind als Beispiel zu sehen. Die Wahl der optimalen Anlagestrategie ist neben dem Risikoprofil von zahlreichen weiteren persönlichen Rahmenbedingungen abhängig, weshalb ein ausführliches Strategiegespräch mit Ihrem Vermögensplaner unabdingbar ist."]
[]
["Anlegerprofil","sehr hoher Sicherheitsbedarf","hoher Sicherheitsbedarf","mittlerer Sicherheitsbedarf","niedriger Sicherheitsbedarf","sehr niedriger Sicherheitsbedarf"]
["erwartete Rendite","1 - 3%","2 - 5%","4 - 6%","5 - 7%","6 - 9%"]
["empfohlener Anlagehorizont","2 - 3 Jahre","4 - 5 Jahre","6 - 7 Jahre","8 - 9 Jahre","> 10 Jahre"]
["empfohlene Anlagestrategie","Obligationen/Festverzinslich","Konservativ/Ertrag","Ausgewogen","Dynamisch/Wachstum","Aktien"]
["Liquidität","0 - 20%","0 - 20%","0 - 20%","0 - 20%","0 - 20%"]
["Obligationen","85 - 95%","60 - 70%","35 -45%","15 - 30%","0 - 10%"]
["Aktien","0 - 5%","20 - 30%","35 - 50%","55 - 65%","65 - 80%"]
["Rohstoffe","0 - 5%","0 - 8%","0 - 12%","0 - 12%","0 - 12%"]
[]
[]
[]
[]
[]
[]
[]
[]
[]
[]
[]
[]
["Liquidität",0.05,0.05,0.05,0.05,0.05]
["Obligationen",0.9,0.65,0.45,0.25,7.4999999999999997E-2]
["Aktien",2.5000000000000001E-2,0.25,0.42499999999999999,0.6,0.77500000000000002]
["Rohstoffe",2.5000000000000001E-2,0.05,7.4999999999999997E-2,0.1,0.1]

{"sheet":"2","index":1,"n_rows":28,"n_cols":6,"rows_kept":28,"cut":false,"hidden":true,"merged":[[0,0,0,5],[2,0,2,5]]}
["Vom Risikoprofil abgeleitetete mögliche\nAnlagestrategie"]
[]
["Aus dem errechneten Risikoprofil lassen sich diverse Anlagestrategien ableiten, welche sowohl die Risikofähigkeit, als auch die Risikobereitschaft berücksichtigen. Nachstehende Anlagestrategien sind als Beispiel zu sehen. Die Wahl der optimalen Anlagestrategie ist neben dem Risikoprofil von zahlreichen weiteren persönlichen Rahmenbedingungen abhängig, weshalb ein ausführliches Strategiegespräch mit Ihrem Vermögensplaner unabdingbar ist."]
[]
["Anlegerprofil","sehr hoher Sicherheitsbedarf","hoher Sicherheitsbedarf","mittlerer Sicherheitsbedarf","niedriger Sicherheitsbedarf","sehr niedriger Sicherheitsbedarf"]
["erwartete Rendite","1 - 3%","2 - 5%","4 - 6%","5 - 7%","6 - 9%"]
["empfohlener Anlagehorizont","2 - 3 Jahre","4 - 5 Jahre","6 - 7 Jahre","8 - 9 Jahre","> 10 Jahre"]
["empfohlene Anlagestrategie","Obligationen/Festverzinslich","Konservativ/Ertrag","Ausgewogen","Dynamisch/Wachstum","Aktien"]
["Liquidität","0 - 20%","0 - 20%","0 - 20%","0 - 20%","0 - 20%"]
["Obligationen","85 - 95%","60 - 70%","35 -45%","15 - 30%","0 - 10%"]
["Aktien","0 - 5%","20 - 30%","35 - 50%","55 - 65%","65 - 80%"]
["Rohstoffe","0 - 5%","0 - 8%","0 - 12%","0 - 12%","0 - 12%"]
[]
[]
[]
[]
[]
[]
[]
[]
[]
[]
[]
[]
["Liquidität",0.05,0.05,0.05,0.05,0.05]
["Obligationen",0.9,0.65,0.45,0.25,7.4999999999999997E-2]
["Aktien",2.5000000000000001E-2,0.25,0.42499999999999999,0.6,0.77500000000000002]
["Rohstoffe",2.5000000000000001E-2,0.05,7.4999999999999997E-2,0.1,0.1]

{"sheet":"3","index":2,"n_rows":28,"n_cols":6,"rows_kept":28,"cut":false,"hidden":true,"merged":[[0,0,0,5],[2,0,2,5]]}
["Vom Risikoprofil abgeleitetete mögliche\nAnlagestrategie"]
[]
["Aus dem errechneten Risikoprofil lassen sich diverse Anlagestrategien ableiten, welche sowohl die Risikofähigkeit, als auch die Risikobereitschaft berücksichtigen. Nachstehende Anlagestrategien sind als Beispiel zu sehen. Die Wahl der optimalen Anlagestrategie ist neben dem Risikoprofil von zahlreichen weiteren persönlichen Rahmenbedingungen abhängig, weshalb ein ausführliches Strategiegespräch mit Ihrem Vermögensplaner unabdingbar ist."]
[]
["Anlegerprofil","sehr hoher Sicherheitsbedarf","hoher Sicherheitsbedarf","mittlerer Sicherheitsbedarf","niedriger Sicherheitsbedarf","sehr niedriger Sicherheitsbedarf"]
["erwartete Rendite","1 - 3%","2 - 5%","4 - 6%","5 - 7%","6 - 9%"]
["empfohlener Anlagehorizont","2 - 3 Jahre","4 - 5 Jahre","6 - 7 Jahre","8 - 9 Jahre","> 10 Jahre"]
["empfohlene Anlagestrategie","Obligationen/Festverzinslich","Konservativ/Ertrag","Ausgewogen","Dynamisch/Wachstum","Aktien"]
["Liquidität","0 - 20%","0 - 20%","0 - 20%","0 - 20%","0 - 20%"]
["Obligationen","85 - 95%","60 - 70%","35 -45%","15 - 30%","0 - 10%"]
["Aktien","0 - 5%","20 - 30%","35 - 50%","55 - 65%","65 - 80%"]
["Rohstoffe","0 - 5%","0 - 8%","0 - 12%","0 - 12%","0 - 12%"]
[]
[]
[]
[]
[]
[]
[]
[]
[]
[]
[]
[]
["Liquidität",0.05,0.05,0.05,0.05,0.05]
["Obligationen",0.9,0.65,0.45,0.25,7.4999999999999997E-2]
["Aktien",2.5000000000000001E-2,0.25,0.42499999999999999,0.6,0.77500000000000002]
["Rohstoffe",2.5000000000000001E-2,0.05,7.4999999999999997E-2,0.1,0.1]

{"sheet":"4","index":3,"n_rows":28,"n_cols":6,"rows_kept":28,"cut":false,"hidden":true,"merged":[[0,0,0,5],[2,0,2,5]]}
["Vom Risikoprofil abgeleitetete mögliche\nAnlagestrategie"]
[]
["Aus dem errechneten Risikoprofil lassen sich diverse Anlagestrategien ableiten, welche sowohl die Risikofähigkeit, als auch die Risikobereitschaft berücksichtigen. Nachstehende Anlagestrategien sind als Beispiel zu sehen. Die Wahl der optimalen Anlagestrategie ist neben dem Risikoprofil von zahlreichen weiteren persönlichen Rahmenbedingungen abhängig, weshalb ein ausführliches Strategiegespräch mit Ihrem Vermögensplaner unabdingbar ist."]
[]
["Anlegerprofil","sehr hoher Sicherheitsbedarf","hoher Sicherheitsbedarf","mittlerer Sicherheitsbedarf","niedriger Sicherheitsbedarf","sehr niedriger Sicherheitsbedarf"]
["erwartete Rendite","1 - 3%","2 - 5%","4 - 6%","5 - 7%","6 - 9%"]
["empfohlener Anlagehorizont","2 - 3 Jahre","4 - 5 Jahre","6 - 7 Jahre","8 - 9 Jahre","> 10 Jahre"]
["empfohlene Anlagestrategie","Obligationen/Festverzinslich","Konservativ/Ertrag","Ausgewogen","Dynamisch/Wachstum","Aktien"]
["Liquidität","0 - 20%","0 - 20%","0 - 20%","0 - 20%","0 - 20%"]
["Obligationen","85 - 95%","60 - 70%","35 -45%","15 - 30%","0 - 10%"]
["Aktien","0 - 5%","20 - 30%","35 - 50%","55 - 65%","65 - 80%"]
["Rohstoffe","0 - 5%","0 - 8%","0 - 12%","0 - 12%","0 - 12%"]
[]
[]
[]
[]
[]
[]
[]
[]
[]
[]
[]
[]
["Liquidität",0.05,0.05,0.05,0.05,0.05]
["Obligationen",0.9,0.65,0.45,0.25,7.4999999999999997E-2]
["Aktien",2.5000000000000001E-2,0.25,0.42499999999999999,0.6,0.77500000000000002]
["Rohstoffe",2.5000000000000001E-2,0.05,7.4999999999999997E-2,0.1,0.1]

{"sheet":"5","index":4,"n_rows":28,"n_cols":6,"rows_kept":28,"cut":false,"hidden":true,"merged":[[0,0,0,5],[2,0,2,5]]}
["Vom Risikoprofil abgeleitetete mögliche\nAnlagestrategie"]
[]
["Aus dem errechneten Risikoprofil lassen sich diverse Anlagestrategien ableiten, welche sowohl die Risikofähigkeit, als auch die Risikobereitschaft berücksichtigen. Nachstehende Anlagestrategien sind als Beispiel zu sehen. Die Wahl der optimalen Anlagestrategie ist neben dem Risikoprofil von zahlreichen weiteren persönlichen Rahmenbedingungen abhängig, weshalb ein ausführliches Strategiegespräch mit Ihrem Vermögensplaner unabdingbar ist."]
[]
["Anlegerprofil","sehr hoher Sicherheitsbedarf","hoher Sicherheitsbedarf","mittlerer Sicherheitsbedarf","niedriger Sicherheitsbedarf","sehr niedriger Sicherheitsbedarf"]
["erwartete Rendite","1 - 3%","2 - 5%","4 - 6%","5 - 7%","6 - 9%"]
["empfohlener Anlagehorizont","2 - 3 Jahre","4 - 5 Jahre","6 - 7 Jahre","8 - 9 Jahre","> 10 Jahre"]
["empfohlene Anlagestrategie","Obligationen/Festverzinslich","Konservativ/Ertrag","Ausgewogen","Dynamisch/Wachstum","Aktien"]
["Liquidität","0 - 20%","0 - 20%","0 - 20%","0 - 20%","0 - 20%"]
["Obligationen","85 - 95%","60 - 70%","35 -45%","15 - 30%","0 - 10%"]
["Aktien","0 - 5%","20 - 30%","35 - 50%","55 - 65%","65 - 80%"]
["Rohstoffe","0 - 5%","0 - 8%","0 - 12%","0 - 12%","0 - 12%"]
[]
[]
[]
[]
[]
[]
[]
[]
[]
[]
[]
[]
["Liquidität",0.05,0.05,0.05,0.05,0.05]
["Obligationen",0.9,0.65,0.45,0.25,7.4999999999999997E-2]
["Aktien",2.5000000000000001E-2,0.25,0.42499999999999999,0.6,0.77500000000000002]
["Rohstoffe",2.5000000000000001E-2,0.05,7.4999999999999997E-2,0.1,0.1]

{"sheet":"Risikoprofil","index":5,"n_rows":70,"n_cols":14,"rows_kept":70,"cut":false,"hidden":false,"merged":[[52,1,52,2],[19,1,19,2],[25,1,25,2],[31,1,31,2],[0,1,0,6],[2,1,2,6],[6,1,6,2],[12,1,12,2],[18,1,18,2],[18,5,18,6],[4,1,4,6],[12,5,12,6],[6,5,6,6],[7,1,7,2],[13,1,13,2],[51,1,51,2],[66,1,66,2],[64,1,64,2],[65,1,65,2],[58,1,58,2],[61,1,61,2],[59,1,59,2],[62,1,62,2],[46,5,46,6],[46,1,46,2],[39,1,39,2],[24,5,24,6],[24,1,24,2],[38,1,38,2],[38,5,38,6],[45,1,45,2],[45,5,45,6],[30,1,30,2],[30,5,30,6],[36,2,36,6],[39,5,39,6],[7,5,7,6],[19,5,19,6],[25,5,25,6],[31,5,31,6],[13,5,13,6]]}
[null,"Muster-Risikoprofil"]
[]
[null,"Das nachfolgende Muster-Risikoprofil eignet sich nur für natürliche Personen.\nBitte wählen Sie zu jeder Frage eine Antwort aus der Antwortbox. Es müssen sämtliche Fragen beantwortet werden.\nUm eine mögliche Anlagestrategie auf Basis des Risikoprofils zu erhalten, klicken Sie bitte auf den Link unter \"Ihr Risikoprofil\"."]
[]
[null,"Ermittlung der Risikofähigkeit "]
[null,null,null,null,null,"    "]
[null,"1.1 Alter",null,null,null,"1.6 Welchem grundsätzlichen Anlagezweck dient das der Bank anvertraute\n      Vermögen?",null,"c","g"]
[null,null,null,null,null,null,null,1,1,null,null,{"$f":"INDEX('Risikoprofil (2)'!C8:D12,H8,2)","v":0},{"$f":"INDEX('Risikoprofil (2)'!G8:H12,I8,2)","v":0}]
[null,null,"zwischen 45 und 59 Jahre",null,null,"x","Vorsorgekapital für die Zeit nach der Erwerbstätigkeit"]
[null,null,"zwischen 30 und 44 Jahre ",null,null,null,"Finanzierung späterer, grösserer Vorhaben (Hauskauf, Gründung Unternehmen) "]
[null,null,"unter 30 Jahre ",null,null,null,"kein besonderer Zweck "]
[]
[null,"1.2 Für wie viele Kinder/Drittpersonen sind Sie finanziell unterstützungspflichtig? ",null,null,null,"1.7 Innerhalb welcher Bandbreite liegt Ihr gegenwärtiges gesamtes \n      Nettovermögen?\n      (Kontoguthaben, Wertschriften, Immobilien abzüglich Kredite)"]
[null,null,null,null,null,"Tiefer als EUR 250'000",null,1,1,null,null,{"$f":"INDEX('Risikoprofil (2)'!C15:D19,H14,2)","v":0},{"$f":"INDEX('Risikoprofil (2)'!G15:H19,I14,2)","v":0}]
[null,"x","1 Kind / Dritter",null,null,"x","Zwischen EUR 250'000 und EUR 500‘000"]
[null,null,"2 Kinder / Dritte",null,null,null,"Zwischen EUR 500'000 und EUR 2 Mio. "]
[null,null,"3 Kinder / Dritte und mehr",null,null,null,"über EUR 2 Mio."]
[]
[null,"1.3 Jährliches Sparpotential",null,null,null,"1.8 Innerhalb welcher Bandbreite liegen gegenwärtig Ihre jährlichen regelmässigen \n      Einkünfte (Salär, Rente, Zinsen, Dividendenzahlungen etc.)"]
[null,"< EUR 10‘000 ",null,null,null,"Tiefer als EUR 100'000",null,1,1,null,null,{"$f":"INDEX('Risikoprofil (2)'!C22:D26,H20,2)","v":0},{"$f":"INDEX('Risikoprofil (2)'!G22:H26,I20,2)","v":0}]
[null,null,"< EUR 50‘000 ",null,null,null,"Zwischen EUR 100'000 und EUR 250'000"]
[null,"x","< EUR 100‘000 ",null,null,"x","Zwischen EUR 250'000 und EUR 500'000"]
[null,null,"> EUR 100‘000 ",null,null,null,"über EUR 500'000 "]
[]
[null,"1.4 Wie hoch ist der  %-Anteil des bei uns anzulegenden Kapitals \n      gegenüber Ihrem gesamten Nettovermögen? ",null,null,null,"1.9 Wie lange kann das Kapital voraussichtlich investiert werden, bis Sie es \n      gesamthaft oder grössere Teile davon benötigen?"]
[null,null,null,null,null,"Voraussichtlich weniger als 3 Jahre",null,1,1,null,null,{"$f":"INDEX('Risikoprofil (2)'!C29:D33,H26,2)","v":0},{"$f":"INDEX('Risikoprofil (2)'!G29:H33,I26,2)","v":0}]
[null,null,"25 – 50%",null,null,null,"Voraussichtlich zwischen 3 – 5 Jahre"]
[null,"x","51 – 80%",null,null,"x","Voraussichtlich länger als 5 Jahre "]
[null,null,"> 80% "]
[]
[null,"1.5 Welcher %-Anteil betragen die folgenden Vermögen/gebundenen Mittel an Ihrem  \n      Gesamtvermögen?\n      Immobilien / Mobilien / Freie und gebundene Vorsorge",null,null,null,"2.0 Ist Ihre Altersvorsorge sichergestellt?"]
[null,null,null,null,null,null,null,1,1,null,null,{"$f":"INDEX('Risikoprofil (2)'!C36:D41,H32,2)","v":0},{"$f":"INDEX('Risikoprofil (2)'!G36:H40,I32,2)","v":0}]
[null,"x","< 25%",null,null,"x","Altersvorsorge reicht voraussichtlich aus"]
[null,null,"25 – 50% ",null,null,null,"Altersvorsorge reicht voraussichtlich gut aus"]
[null,null,"51 – 80% "]
[null,null,null,null,null,null,null,null,null,null,null,{"$f":"SUM(L8:L34)","v":0},{"$f":"SUM(M8:M34)","v":0},{"$f":"SUM(L36:M36)","v":0}]
[null,null,{"$f":"Risikoprofil_sten!B37","v":" Ermittlung der Risikobereitschaft des Kunden"}]
[]
[null,"2.1 Die jährliche Wertentwicklung einer Anlage bewegt sich zwischen 25% Verlust \n      und 25% Gewinn und weist eine nicht garantierte Durchschnittsrendite von 6% \n      pro Jahr auf. Wie viel würden Sie in diese Anlage investieren?",null,null,null,"2.4 Der Wert einer Anlage reduziert sich um 25%. Wie reagieren Sie?"]
[null,null,null,null,null,"Ich würde diese Anlage sofort verkaufen ",null,1,1,null,null,{"$f":"INDEX('Risikoprofil (2)'!C46:D51,H40,2)","v":0},{"$f":"INDEX('Risikoprofil (2)'!G46:H51,I40,2)","v":0}]
[null,null,"Weniger als die Hälfte meines Anlagevermögens ",null,null,"x","Ich würde abwarten, mich dabei aber sehr unwohl fühlen "]
[null,"x","Die Hälfte meines Anlagevermögens ",null,null,null,"Ich würde den Verlust hinnehmen, da ich langfristig plane und mit kurzer Volatilität rechne"]
[null,null,"Mehr als die Hälfte meines Anlagevermögens ",null,null,null,"Ich würde noch mehr investieren, um von den niedrigen Kursen zu profitieren"]
[null,null,"Mein gesamtes Anlagevermögen "]
[]
[null,"2.2 Welche Schwankungsbreite pro Jahr bei Ihrem Portfolio würde Sie nicht \n      beunruhigen ?",null,null,null,"2.5 Wie schätzen Sie Ihre Kenntnisse hinsichtlich der Finanzmärkte, Finanzprodukte \n      und Anlagestrategien ein?"]
[null,null,null,null,null,"Wenig Kenntnisse",null,1,1,null,null,{"$f":"INDEX('Risikoprofil (2)'!C54:D59,H47,2)","v":0},{"$f":"INDEX('Risikoprofil (2)'!G54:H59,I47,2)","v":0}]
[null,"x","-6 bis +12% ",null,null,null,"Grundkenntnisse"]
[null,null,"-12 bis +23% ",null,null,null,"Gute Kenntnisse"]
[null,null,"-20 bis +35%",null,null,null,"Sehr gute Kenntnisse"]
[]
[null,"2.3 Über wie viel Erfahrung mit risikoreichen Anlagen wie Aktien, strukturierte \n      Produkte verfügen Sie?"]
[null,null,null,null,null,null,null,1,null,null,null,{"$f":"INDEX('Risikoprofil (2)'!C61:D66,H53,2)","v":0}]
[null,null,"≤ 3 Jahre"]
[null,"x","3 bis < 6 Jahre"]
[null,null,"6 bis ≤ 15 Jahre"]
[null,null,"> 15 Jahre"]
[null,null,null,null,null,null,null,null,null,null,null,{"$f":"SUM(L40:L57)","v":0},{"$f":"SUM(M40:M57)","v":0},{"$f":"SUM(L58:M58)","v":0}]
[null,"Ergebnis Risikofähigkeit",null,null,null,null,null,null,null,null,{"$f":"H8+H14+H20+H26+H32+I8+I14+I20+I26+I32+H40+H47+I40+I47+H53","v":15},null,null,{"$f":"SUM(N58,N36)","v":0}]
[null,{"$f":"IF($N$36<1,\"-\",IF($N$36<12,\"sehr hoher Sicherheitsbedarf\",IF($N$36<19,\"hoher Sicherheitsbedarf\",IF($N$36<27,\"mittlerer Sicherheitsbedarf\",IF($N$36<35,\"niedriger Sicherheitsbedarf\",IF($N$36>34,\"sehr niedriger Sicherheitsbedarf\"))))))","v":"-"},null,null,null,null,null,null,null,null,{"$f":"COUNTIF(H9:H54,1)+COUNTIF(I8:I47,1)","v":14}]
[null,null,{"$f":"IF(K60>0,\"Es wurden nicht alle Fragen beantwortet\",\"\")","v":"Es wurden nicht alle Fragen beantwortet"},null,null,null,null,{"$f":"IF($N$36<12,1,IF($N$36<19,2,IF($N$36<27,3,IF($N$36<35,4,IF($N$36>34,5)))))","v":1}]
[null,"Ergebnis Risikobereitschaft"]
[null,{"$f":"IF($N$58<1,\"-\",IF($N$58<7,\"sehr hoher Sicherheitsbedarf\",IF($N$58<10,\"hoher Sicherheitsbedarf\",IF($N$58<15,\"mittlerer Sicherheitsbedarf\",IF($N$58<19,\"niedriger Sicherheitsbedarf\",IF($N$58>18,\"sehr niedriger Sicherheitsbedarf\"))))))","v":"-"},null,null,null,null,null,{"$f":"IF($N$58<7,1,IF($N$58<10,2,IF($N$58<15,3,IF($N$58<19,4,IF($N$58>18,5)))))","v":1}]
[]
[null,"Ihr Risikoprofil"]
[null,{"$f":"IF(H61<H63,B60,B63)","v":"-"},null,null,null,null,null,{"$f":"VLOOKUP(B66,J66:K70,2,FALSE)","v":{"$error":"#N/A"}},null,"sehr hoher Sicherheitsbedarf",1]
[null,"Bitte klicken Sie auf das errechnete Risikoprofil um eine daraus abgeleitete mögliche Anlagestrategie anzusehen.",null,null,null,null,null,null,null,"hoher Sicherheitsbedarf",2]
[null,null,null,null,null,null,null,null,null,"mittlerer Sicherheitsbedarf",3]
[null,null,null,null,null,null,null,null,null,"niedriger sicherheitsbedarf",4]
[null,null,null,null,null,null,null,null,null,"sehr niedriger Sicherheitsbedarf",5]

{"sheet":"Risikoprofil_sten","index":6,"n_rows":67,"n_cols":17,"rows_kept":67,"cut":false,"hidden":true,"merged":[[65,1,65,2],[66,1,66,2],[51,1,51,2],[58,1,58,2],[59,1,59,2],[61,1,61,2],[62,1,62,2],[64,1,64,2],[35,1,35,3],[36,1,36,6],[38,1,38,2],[38,5,38,6],[45,1,45,2],[45,5,45,6],[18,1,18,2],[18,5,18,6],[24,1,24,2],[24,5,24,6],[30,1,30,2],[30,5,30,6],[12,1,12,2],[12,5,12,6],[0,1,0,6],[2,1,2,6],[4,1,4,6],[6,1,6,2],[6,5,6,6]]}
[null,"Muster-Risikoprofil"]
[]
[null,"Bitte ergänzen Sie untenstehenden Fragebogen mit einem x in den blauen Feldern vor der entsprechenden Antwort. Bei jeder Frage ist jeweils nur eine Antwort möglich. Es müssen sämtliche Fragen beantwortet sein. \nDas nachfolgende Muster-Risikoprofil eignet sich nur für natürliche Personen. Um ein Risikoprofil für juristische Personen zu evaluieren oder weitere Informationen zu erhalten, wenden Sie sich gerne an unser Mitglied Herr Patrick Deschler."]
[]
[null,"Ermittlung der Risikofähigkeit "]
[null,null,null,null,null,"    ",null,null,null,null,null,null,null,null,null,null,1]
[null,"1.1 Alter",null,null,null,"1.6 Welchem grundsätzlichen Anlagezweck dient das der Bank anvertraute\n      Vermögen?",null,null,null,null,null,null,null,null,null,null,2]
[null,null,null,1,{"$f":"INDEX(M9:N12,D8,2)","v":1},null,"Deckung laufender Kosten (Lebenshaltung, Versicherungen, Steuern, Schule etc.) ",0,{"$f":"IF(B8=\"x\",D8,\"0\")","v":"0"},{"$f":"IF(F8=\"x\",H8,\"0\")","v":"0"},null,null,null,null,null,null,3]
[null,null,null,null,null,"x","Vorsorgekapital für die Zeit nach der Erwerbstätigkeit",1,{"$f":"IF(B9=\"x\",D9,\"0\")","v":"0"},{"$f":"IF(F9=\"x\",H9,\"0\")","v":1},null,null,"über 60 Jahre ",1]
[null,null,null,null,null,null,"Finanzierung späterer, grösserer Vorhaben (Hauskauf, Gründung Unternehmen) ",2,{"$f":"IF(B10=\"x\",D10,\"0\")","v":"0"},"0",null,null,"zwischen 45 und 59 Jahre",2]
[null,null,null,null,null,null,"kein besonderer Zweck ",3,{"$f":"IF(B11=\"x\",D11,\"0\")","v":"0"},"0",null,null,"zwischen 30 und 44 Jahre ",3]
[null,null,null,null,null,null,null,null,null,null,null,null,"unter 30 Jahre ",4]
[null,"1.2 Für wie viele Kinder/Drittpersonen sind Sie finanziell unterstützungspflichtig? ",null,null,null,"1.7 Innerhalb welcher Bandbreite liegt Ihr gegenwärtiges gesamtes \n      Nettovermögen?\n      (Kontoguthaben, Wertschriften, Immobilien abzüglich Kredite)"]
[null,null,null,3,{"$f":"INDEX(M14:N17,D14,2)","v":2},null,"Tiefer als EUR 250'000",1,{"$f":"IF(B14=\"x\",D14,\"0\")","v":"0"},{"$f":"IF(F14=\"x\",H14,\"0\")","v":"0"},null,null,"keine Kinder / Dritte oder erwachsene Kinder ",6]
[null,null,null,null,null,"x","Zwischen EUR 250'000 und EUR 500‘000",2,{"$f":"IF(B15=\"x\",D15,\"0\")","v":"0"},2,null,null,"1 Kind / Dritter",4]
[null,null,null,null,null,null,"Zwischen EUR 500'000 und EUR 2 Mio. ",3,{"$f":"IF(B16=\"x\",D16,\"0\")","v":"0"},"0",null,null,"2 Kinder / Dritte",2]
[null,null,null,null,null,null,"über EUR 2 Mio.",4,{"$f":"IF(B17=\"x\",D17,\"0\")","v":"0"},"0",null,null,"3 Kinder / Dritte und mehr",1]
[]
[null,"1.3 Wie hoch ist Ihr durchschnittliches Sparpotenzial pro Jahr? ",null,null,null,"1.8 Innerhalb welcher Bandbreite liegen gegenwärtig Ihre jährlichen regelmässigen \n      Einkünfte (Salär, Rente, Zinsen, Dividendenzahlungen etc.)"]
[null,null,"< EUR 10‘000 ",4,{"$f":"INDEX(M20:N23,D20,2)","v":4},null,"Tiefer als EUR 100'000",1,{"$f":"IF(B20=\"x\",D20,\"0\")","v":"0"},{"$f":"IF(F20=\"x\",H20,\"0\")","v":"0"},null,null,"< EUR 10‘000 ",1]
[null,null,"< EUR 50‘000 ",2,null,null,"Zwischen EUR 100'000 und EUR 250'000",2,{"$f":"IF(B21=\"x\",D21,\"0\")","v":"0"},"0",null,null,"< EUR 50‘000 ",2]
[null,"x","< EUR 100‘000 ",3,null,"x","Zwischen EUR 250'000 und EUR 500'000",3,{"$f":"IF(B22=\"x\",D22,\"0\")","v":3},3,null,null,"< EUR 100‘000 ",3]
[null,null,"> EUR 100‘000 ",4,null,null,"über EUR 500'000 ",4,{"$f":"IF(B23=\"x\",D23,\"0\")","v":"0"},"0",null,null,"> EUR 100‘000 ",4]
[]
[null,"1.4 Wie hoch ist der  %-Anteil des bei uns anzulegenden Kapitals \n      gegenüber Ihrem gesamten Nettovermögen? ",null,null,null,"1.9 Wie lange kann das Kapital voraussichtlich investiert werden, bis Sie es \n      gesamthaft oder grössere Teile davon benötigen?"]
[null,null,"< 25% ",2,{"$f":"INDEX(M26:N29,D26,2)","v":4},null,"Voraussichtlich weniger als 3 Jahre",0,{"$f":"IF(B26=\"x\",D26,\"0\")","v":"0"},{"$f":"IF(F26=\"x\",H26,\"0\")","v":"0"},null,null,"< 25% ",6]
[null,null,"25 – 50%",4,null,null,"Voraussichtlich zwischen 3 – 5 Jahre",1,{"$f":"IF(B27=\"x\",D27,\"0\")","v":"0"},"0",null,null,"25 – 50%",4]
[null,"x","51 – 80%",2,null,"x","Voraussichtlich länger als 5 Jahre ",2,{"$f":"IF(B28=\"x\",D28,\"0\")","v":2},2,null,null,"51 – 80%",2]
[null,null,"> 80% ",0,null,null,null,null,{"$f":"IF(B29=\"x\",D29,\"0\")","v":"0"},null,null,null,"> 80% ",0]
[]
[null,"1.5 Welcher %-Anteil betragen die folgenden Vermögen/gebundenen Mittel an Ihrem  \n      Gesamtvermögen?\n      Immobilien / Mobilien / Freie und gebundene Vorsorge",null,null,null,"2.0 Ist Ihre Altersvorsorge sichergestellt?"]
[null,null,"keine ",4,null,null,"Es ist keine Altersvorsorge vorhanden/Altersvorsorge reicht nicht aus",0,{"$f":"IF(B32=\"x\",D32,\"0\")","v":"0"},{"$f":"IF(F32=\"x\",H32,\"0\")","v":"0"}]
[null,"x","< 25%",3,null,"x","Altersvorsorge reicht voraussichtlich aus",2,{"$f":"IF(B33=\"x\",D33,\"0\")","v":3},2]
[null,null,"25 – 50% ",2,null,null,"Altersvorsorge reicht voraussichtlich gut aus",4,{"$f":"IF(B34=\"x\",D34,\"0\")","v":"0"},"0"]
[null,null,"51 – 80% ",1,null,null,null,null,{"$f":"IF(B35=\"x\",D35,\"0\")","v":"0"}]
[null,null,"☐ > 80% ",0,null,null,null,null,{"$f":"SUM(I8:I34)","v":8},{"$f":"SUM(J8:J34)","v":10},{"$f":"SUM(I36:J36)","v":18}]
[null," Ermittlung der Risikobereitschaft des Kunden"]
[]
[null,"2.1 Die jährliche Wertentwicklung einer Anlage bewegt sich zwischen 25% Verlust \n      und 25% Gewinn und weist eine nicht garantierte Durchschnittsrendite von 6% \n      pro Jahr auf. Wie viel würden Sie in diese Anlage investieren?",null,null,null,"2.4 Der Wert einer Anlage reduziert sich um 25%. Wie reagieren Sie?"]
[null,null,"Ich investiere mit grosser Zurückhaltung in solche Anlagen  ",1,null,null,"Ich würde diese Anlage sofort verkaufen ",1,{"$f":"IF(B40=\"x\",D40,\"0\")","v":"0"},{"$f":"IF(F40=\"x\",H40,\"0\")","v":"0"}]
[null,null,"Weniger als die Hälfte meines Anlagevermögens ",2,null,"x","Ich würde abwarten, mich dabei aber sehr unwohl fühlen ",2,{"$f":"IF(B41=\"x\",D41,\"0\")","v":"0"},2]
[null,"x","Die Hälfte meines Anlagevermögens ",3,null,null,"Ich würde den Verlust hinnehmen, da ich langfristig plane und mit kurzer Volatilität rechne",3,{"$f":"IF(B42=\"x\",D42,\"0\")","v":3},"0"]
[null,null,"Mehr als die Hälfte meines Anlagevermögens ",4,null,null,"Ich würde noch mehr investieren, um von den niedrigen Kursen zu profitieren",4,{"$f":"IF(B43=\"x\",D43,\"0\")","v":"0"},"0"]
[null,null,"Mein gesamtes Anlagevermögen ",5,null,null,null,null,{"$f":"IF(B44=\"x\",D44,\"0\")","v":"0"}]
[]
[null,"2.2 Welche Schwankungsbreite pro Jahr bei Ihrem Portfolio würde Sie nicht \n      beunruhigen ?",null,null,null,"2.5 Wie schätzen Sie Ihre Kenntnisse hinsichtlich der Finanzmärkte, Finanzprodukte \n      und Anlagestrategien ein?"]
[null,null,"-2 bis +6% ",0,null,"x","Wenig Kenntnisse",1,{"$f":"IF(B47=\"x\",D47,\"0\")","v":"0"},{"$f":"IF(F47=\"x\",H47,\"0\")","v":1}]
[null,"x","-6 bis +12% ",1,null,null,"Grundkenntnisse",2,{"$f":"IF(B48=\"x\",D48,\"0\")","v":1},"0"]
[null,null,"-12 bis +23% ",3,null,null,"Gute Kenntnisse",3,{"$f":"IF(B49=\"x\",D49,\"0\")","v":"0"},"0"]
[null,null,"-20 bis +35%",4,null,null,"Sehr gute Kenntnisse",4,{"$f":"IF(B50=\"x\",D50,\"0\")","v":"0"},"0"]
[]
[null,"2.3 Über wie viel Erfahrung mit risikoreichen Anlagen wie Aktien, strukturierte \n      Produkte verfügen Sie?"]
[null,null,"keine",1,null,null,null,null,{"$f":"IF(B53=\"x\",D53,\"0\")","v":"0"}]
[null,null,"≤ 3 Jahre",2,null,null,null,null,"0"]
[null,"x","3 bis < 6 Jahre",3,null,null,null,null,3]
[null,null,"6 bis ≤ 15 Jahre",4,null,null,null,null,"0"]
[null,null,"> 15 Jahre",5,null,null,null,null,"0"]
[null,null,null,null,null,null,null,null,{"$f":"SUM(I40:I57)","v":7},{"$f":"SUM(J40:J57)","v":3},{"$f":"SUM(I58:J58)","v":10}]
[null,"Ergebnis Risikofähigkeit",null,null,null,null,null,null,null,null,{"$f":"SUM(K58,K36)","v":28}]
[null,{"$f":"IF($K$36<1,\"-\",IF($K$36<12,\"sehr hoher Sicherheitsbedarf\",IF($K$36<19,\"hoher Sicherheitsbedarf\",IF($K$36<27,\"mittlerer Sicherheitsbedarf\",IF($K$36<35,\"niedriger Sicherheitsbedarf\",IF($K$36>34,\"sehr niedriger Sicherheitsbedarf\"))))))","v":"hoher Sicherheitsbedarf"},null,{"$f":"IF($K$36<12,1,IF($K$36<19,2,IF($K$36<27,3,IF($K$36<35,4,IF($K$36>34,5)))))","v":2}]
[]
[null,"Ergebnis Risikobereitschaft"]
[null,{"$f":"IF($K$58<1,\"-\",IF($K$58<7,\"sehr hoher Sicherheitsbedarf\",IF($K$58<10,\"hoher Sicherheitsbedarf\",IF($K$58<15,\"mittlerer Sicherheitsbedarf\",IF($K$58<19,\"niedriger Sicherheitsbedarf\",IF($K$58>18,\"sehr niedriger Sicherheitsbedarf\"))))))","v":"mittlerer Sicherheitsbedarf"},null,{"$f":"IF($K$58<7,1,IF($K$58<10,2,IF($K$58<15,3,IF($K$58<19,4,IF($K$58>18,5)))))","v":3}]
[]
[null,"Ihr Risikoprofil"]
[null,{"$f":"IF(D60<D63,B60,B63)","v":"hoher Sicherheitsbedarf"}]
[null,"Bitte klicken Sie auf das errechnete Risikoprofil um eine daraus abgeleitete mögliche Anlagestrategie anzusehen."]

{"sheet":"Risikoprofil (2)","index":7,"n_rows":76,"n_cols":17,"rows_kept":76,"cut":false,"hidden":true,"merged":[[13,1,13,2],[13,5,13,6],[0,1,0,6],[2,1,2,6],[4,1,4,6],[6,1,6,2],[6,5,6,6],[20,1,20,2],[20,5,20,6],[27,1,27,2],[27,5,27,6],[34,1,34,2],[34,5,34,6],[41,1,41,3],[42,1,42,6],[44,1,44,2],[44,5,44,6],[52,1,52,2],[52,5,52,6],[74,1,74,2],[75,1,75,2],[59,1,59,2],[67,1,67,2],[68,1,68,2],[70,1,70,2],[71,1,71,2],[73,1,73,2]]}
[null,"Muster-Risikoprofil"]
[]
[null,"Bitte ergänzen Sie untenstehenden Fragebogen mit einem x in den blauen Feldern vor der entsprechenden Antwort. Bei jeder Frage ist jeweils nur eine Antwort möglich. Es müssen sämtliche Fragen beantwortet sein. \nDas nachfolgende Muster-Risikoprofil eignet sich nur für natürliche Personen. Um ein Risikoprofil für juristische Personen zu evaluieren oder weitere Informationen zu erhalten, wenden Sie sich gerne an unser Mitglied Herr Patrick Deschler."]
[]
[null,"Ermittlung der Risikofähigkeit "]
[null,null,null,null,null,"    ",null,null,null,null,null,null,null,null,null,null,1]
[null,"1.1 Alter",null,null,null,"1.6 Welchem grundsätzlichen Anlagezweck dient das der Bank anvertraute\n      Vermögen?",null,null,null,null,null,null,null,null,null,null,2]
[null,null,null,0,null,null,null,0]
[null,"x","über 60 Jahre ",1,null,null,"Deckung laufender Kosten (Lebenshaltung, Versicherungen, Steuern, Schule etc.) ",0,{"$f":"IF(B9=\"x\",D9,\"0\")","v":1},{"$f":"IF(F9=\"x\",H9,\"0\")","v":"0"},null,null,null,null,null,null,3]
[null,null,"zwischen 45 und 59 Jahre",2,null,"x","Vorsorgekapital für die Zeit nach der Erwerbstätigkeit",1,{"$f":"IF(B10=\"x\",D10,\"0\")","v":"0"},{"$f":"IF(F10=\"x\",H10,\"0\")","v":1}]
[null,null,"zwischen 30 und 44 Jahre ",3,null,null,"Finanzierung späterer, grösserer Vorhaben (Hauskauf, Gründung Unternehmen) ",2,"0","0"]
[null,null,"unter 30 Jahre ",4,null,null,"kein besonderer Zweck ",3,"0","0"]
[]
[null,"1.2 Für wie viele Kinder/Drittpersonen sind Sie finanziell unterstützungspflichtig? ",null,null,null,"1.7 Innerhalb welcher Bandbreite liegt Ihr gegenwärtiges gesamtes \n      Nettovermögen?\n      (Kontoguthaben, Wertschriften, Immobilien abzüglich Kredite)"]
[null,null,null,0,null,null,null,0]
[null,null,"keine Kinder / Dritte oder erwachsene Kinder ",6,null,null,"Tiefer als EUR 250'000",1,{"$f":"IF(B16=\"x\",D16,\"0\")","v":"0"},{"$f":"IF(F16=\"x\",H16,\"0\")","v":"0"}]
[null,"x","1 Kind / Dritter",4,null,"x","Zwischen EUR 250'000 und EUR 500‘000",2,4,2]
[null,null,"2 Kinder / Dritte",2,null,null,"Zwischen EUR 500'000 und EUR 2 Mio. ",3,"0","0"]
[null,null,"3 Kinder / Dritte und mehr",1,null,null,"über EUR 2 Mio.",4,"0","0"]
[]
[null,"1.3 Wie hoch ist Ihr durchschnittliches Sparpotenzial pro Jahr? ",null,null,null,"1.8 Innerhalb welcher Bandbreite liegen gegenwärtig Ihre jährlichen regelmässigen \n      Einkünfte (Salär, Rente, Zinsen, Dividendenzahlungen etc.)"]
[null,null,null,0,null,null,null,0]
[null,null,"< EUR 10‘000 ",1,null,null,"Tiefer als EUR 100'000",1,{"$f":"IF(B23=\"x\",D23,\"0\")","v":"0"},{"$f":"IF(F23=\"x\",H23,\"0\")","v":"0"}]
[null,null,"< EUR 50‘000 ",2,null,null,"Zwischen EUR 100'000 und EUR 250'000",2,"0","0"]
[null,"x","< EUR 100‘000 ",3,null,"x","Zwischen EUR 250'000 und EUR 500'000",3,3,3]
[null,null,"> EUR 100‘000 ",4,null,null,"über EUR 500'000 ",4,"0","0"]
[]
[null,"1.4 Wie hoch ist der  %-Anteil des bei uns anzulegenden Kapitals \n      gegenüber Ihrem gesamten Nettovermögen? ",null,null,null,"1.9 Wie lange kann das Kapital voraussichtlich investiert werden, bis Sie es \n      gesamthaft oder grössere Teile davon benötigen?"]
[null,null,null,0,null,null,null,0]
[null,null,"< 25% ",6,null,null,"Voraussichtlich weniger als 3 Jahre",0,{"$f":"IF(B30=\"x\",D30,\"0\")","v":"0"},{"$f":"IF(F30=\"x\",H30,\"0\")","v":"0"}]
[null,null,"25 – 50%",4,null,null,"Voraussichtlich zwischen 3 – 5 Jahre",1,"0","0"]
[null,"x","51 – 80%",2,null,"x","Voraussichtlich länger als 5 Jahre ",2,2,2]
[null,null,"> 80% ",0,null,null,null,null,{"$f":"IF(B33=\"x\",D33,\"0\")","v":"0"}]
[]
[null,"1.5 Welcher %-Anteil betragen die folgenden Vermögen/gebundenen Mittel an Ihrem  \n      Gesamtvermögen?\n      Immobilien / Mobilien / Freie und gebundene Vorsorge",null,null,null,"2.0 Ist Ihre Altersvorsorge sichergestellt?"]
[null,null,null,0,null,null,null,0]
[null,null,"keine ",4,null,null,"Es ist keine Altersvorsorge vorhanden/Altersvorsorge reicht nicht aus",0,{"$f":"IF(B37=\"x\",D37,\"0\")","v":"0"},{"$f":"IF(F37=\"x\",H37,\"0\")","v":"0"}]
[null,"x","< 25%",3,null,"x","Altersvorsorge reicht voraussichtlich aus",2,3,2]
[null,null,"25 – 50% ",2,null,null,"Altersvorsorge reicht voraussichtlich gut aus",4,"0","0"]
[null,null,"51 – 80% ",1,null,null,null,null,"0"]
[null,null,">80%",0,null,null,null,null,"0"]
[null,null,"☐ > 80% ",0,null,null,null,null,{"$f":"SUM(I9:I39)","v":13},{"$f":"SUM(J9:J39)","v":10},{"$f":"SUM(I42:J42)","v":23}]
[null," Ermittlung der Risikobereitschaft des Kunden"]
[]
[null,"2.1 Die jährliche Wertentwicklung einer Anlage bewegt sich zwischen 25% Verlust \n      und 25% Gewinn und weist eine nicht garantierte Durchschnittsrendite von 6% \n      pro Jahr auf. Wie viel würden Sie in diese Anlage investieren?",null,null,null,"2.4 Der Wert einer Anlage reduziert sich um 25%. Wie reagieren Sie?"]
[]
[null,null,"Ich investiere mit grosser Zurückhaltung in solche Anlagen  ",1,null,null,"Ich würde diese Anlage sofort verkaufen ",1,{"$f":"IF(B47=\"x\",D47,\"0\")","v":"0"},{"$f":"IF(F47=\"x\",H47,\"0\")","v":"0"}]
[null,null,"Weniger als die Hälfte meines Anlagevermögens ",2,null,"x","Ich würde abwarten, mich dabei aber sehr unwohl fühlen ",2,"0",2]
[null,"x","Die Hälfte meines Anlagevermögens ",3,null,null,"Ich würde den Verlust hinnehmen, da ich langfristig plane und mit kurzer Volatilität rechne",3,3,"0"]
[null,null,"Mehr als die Hälfte meines Anlagevermögens ",4,null,null,"Ich würde noch mehr investieren, um von den niedrigen Kursen zu profitieren",4,"0","0"]
[null,null,"Mein gesamtes Anlagevermögen ",5,null,null,null,null,"0"]
[]
[null,"2.2 Welche Schwankungsbreite pro Jahr bei Ihrem Portfolio würde Sie nicht \n      beunruhigen ?",null,null,null,"2.5 Wie schätzen Sie Ihre Kenntnisse hinsichtlich der Finanzmärkte, Finanzprodukte \n      und Anlagestrategien ein?"]
[]
[null,null,"-2 bis +6% ",0,null,"x","Wenig Kenntnisse",1,{"$f":"IF(B55=\"x\",D55,\"0\")","v":"0"},{"$f":"IF(F55=\"x\",H55,\"0\")","v":1}]
[null,"x","-6 bis +12% ",1,null,null,"Grundkenntnisse",2,1,"0"]
[null,null,"-12 bis +23% ",3,null,null,"Gute Kenntnisse",3,"0","0"]
[null,null,"-20 bis +35%",4,null,null,"Sehr gute Kenntnisse",4,"0","0"]
[]
[null,"2.3 Über wie viel Erfahrung mit risikoreichen Anlagen wie Aktien, strukturierte \n      Produkte verfügen Sie?"]
[]
[null,null,"keine",1,null,null,null,null,{"$f":"IF(B62=\"x\",D62,\"0\")","v":"0"}]
[null,null,"≤ 3 Jahre",2,null,null,null,null,"0"]
[null,"x","3 bis < 6 Jahre",3,null,null,null,null,3]
[null,null,"6 bis ≤ 15 Jahre",4,null,null,null,null,"0"]
[null,null,"> 15 Jahre",5,null,null,null,null,"0"]
[null,null,null,null,null,null,null,null,{"$f":"SUM(I47:I66)","v":7},{"$f":"SUM(J47:J66)","v":3},{"$f":"SUM(I67:J67)","v":10}]
[null,"Ergebnis Risikofähigkeit",null,null,null,null,null,null,null,null,{"$f":"SUM(K67,K42)","v":33}]
[null,{"$f":"IF($K$42<1,\"-\",IF($K$42<12,\"sehr hoher Sicherheitsbedarf\",IF($K$42<19,\"hoher Sicherheitsbedarf\",IF($K$42<27,\"mittlerer Sicherheitsbedarf\",IF($K$42<35,\"niedriger Sicherheitsbedarf\",IF($K$42>34,\"sehr niedriger Sicherheitsbedarf\"))))))","v":"mittlerer Sicherheitsbedarf"},null,{"$f":"IF($K$42<12,1,IF($K$42<19,2,IF($K$42<27,3,IF($K$42<35,4,IF($K$42>34,5)))))","v":3}]
[]
[null,"Ergebnis Risikobereitschaft"]
[null,{"$f":"IF($K$67<1,\"-\",IF($K$67<7,\"sehr hoher Sicherheitsbedarf\",IF($K$67<10,\"hoher Sicherheitsbedarf\",IF($K$67<15,\"mittlerer Sicherheitsbedarf\",IF($K$67<19,\"niedriger Sicherheitsbedarf\",IF($K$67>18,\"sehr niedriger Sicherheitsbedarf\"))))))","v":"mittlerer Sicherheitsbedarf"},null,{"$f":"IF($K$67<7,1,IF($K$67<10,2,IF($K$67<15,3,IF($K$67<19,4,IF($K$67>18,5)))))","v":3}]
[]
[null,"Ihr Risikoprofil"]
[null,{"$f":"IF(D69<D72,B69,B72)","v":"mittlerer Sicherheitsbedarf"}]
[null,"Bitte klicken Sie auf das errechnete Risikoprofil um eine daraus abgeleitete mögliche Anlagestrategie anzusehen."]

{"sheet":"Anlagestrategie","index":8,"n_rows":28,"n_cols":6,"rows_kept":28,"cut":false,"hidden":true,"merged":[[0,0,0,5],[2,0,2,5]]}
["Vom Risikoprofil abgeleitetete mögliche\nAnlagestrategie"]
[]
["Aus dem errechneten Risikoprofil lassen sich diverse Anlagestrategien abweichen, welche sowohl die Risikofähigkeit, als auch die Risikobereitschaft berücksichtigen. Nachstehende Anlagestrategien sind als Beispiel zu sehen. Die Wahl der optimalen Anlagestrategie ist neben dem Risiprofil von zahlreichen weiteren persönlichen Rahmenbedingungen abhängig, weshalb ein ausführliches Strategiegespräch mit Ihrem Vermögensplaner unabdingbar ist."]
[null,{"$f":"IF(Risikoprofil!$B$66=B5,10,0)","v":0},{"$f":"IF(Risikoprofil!$B$66=C5,10,0)","v":0},{"$f":"IF(Risikoprofil!$B$66=D5,10,0)","v":0},{"$f":"IF(Risikoprofil!$B$66=E5,10,0)","v":0},{"$f":"IF(Risikoprofil!$B$66=F5,10,0)","v":0}]
["Anlegerprofil","sehr hoher Sicherheitsbedarf","hoher Sicherheitsbedarf","mittlerer Sicherheitsbedarf","niedriger Sicherheitsbedarf","sehr niedriger Sicherheitsbedarf"]
["erwartete Rendite","1 - 3%","2 - 5%","4 - 6%","5 - 7%","6 - 9%"]
["empfohlener Anlagehorizont","2 - 3 Jahre","4 - 5 Jahre","6 - 7 Jahre","8 - 9 Jahre","> 10 Jahre"]
["empfohlene Anlagestrategie","Obligationen/Festverzinslich","Konservativ/Ertrag","Ausgewogen","Dynamisch/Wachstum","Aktien"]
["Liquidität","0 - 20%","0 - 20%","0 - 20%","0 - 20%","0 - 20%"]
["Obligationen","85 - 95%","60 - 70%","35 -45%","15 - 30%","0 - 10%"]
["Aktien","0 - 5%","20 - 30%","35 - 50%","55 - 65%","65 - 80%"]
["Rohstoffe","0 - 5%","0 - 8%","0 - 12%","0 - 12%","0 - 12%"]
[]
[]
[]
[]
[]
[]
[]
[]
[]
[]
[]
[]
["Liquidität",0.05,0.05,0.05,0.05,0.05]
["Obligationen",0.9,0.65,0.45,0.25,7.4999999999999997E-2]
["Aktien",2.5000000000000001E-2,0.25,0.42499999999999999,0.6,0.77500000000000002]
["Rohstoffe",2.5000000000000001E-2,0.05,7.4999999999999997E-2,0.1,0.1]

{"sheet":"Sheet1","index":9,"n_rows":0,"n_cols":0,"rows_kept":0,"cut":false,"hidden":true,"merged":[]}